fUST/lending_fUST_20240612
["ID","MTS","AMOUNT","RATE_DAILY","PERIOD"]
[329193546,1718167847658,-500.0,0.00018082,2]
[329193547,1718167847672,-2230.04,0.00018082,2]
[329193548,1718167847686,-500.0,0.00018082,2]
[329193549,1718167847698,-500.0,0.00018082,2]
[329193550,1718167847709,-514.81433297,0.00018082,2]
[329193551,1718167847719,-500.0,0.00018082,4]
[329193552,1718167847730,-500.0,0.00018082,2]
[329193553,1718167847743,-527.64,0.00018082,2]
[329193554,1718167847753,-500.0,0.00018082,2]
[329193556,1718167847795,-283.52,0.00018082,2]
[329193557,1718167847806,-500.0,0.00018082,2]
[329193558,1718167847819,-581.52,0.00018082,2]
[329193559,1718167847831,-500.0,0.00018082,2]
[329193560,1718167847843,-950.03,0.00018082,2]
[329193561,1718167847855,-619.86637943,0.00018082,2]
[329193562,1718167847866,-500.0,0.00018082,2]
[329193564,1718167847877,-509.93422011,0.00018082,2]
[329193565,1718167847889,-500.0,0.00018082,2]
[329193566,1718167847899,-500.0,0.00018082,2]
[329193567,1718167847910,-500.0,0.00018082,2]
[329193568,1718167847920,-500.0,0.00018082,2]
[329193569,1718167847931,-6879.56,0.00018082,2]
[329193570,1718167847945,-1671.32,0.00018082,2]
[329193571,1718167847959,-500.0,0.00018082,2]
[329193572,1718167847969,-1149.12,0.00018082,2]
[329193573,1718167847979,-5481.19,0.00018082,2]
[329193574,1718167847989,-500.0,0.00018082,2]
[329193575,1718167847999,-553.11,0.00018082,2]
[329193576,1718167848010,-500.0,0.00018082,2]
[329193577,1718167848020,-4262.91,0.00018082,2]
[329193578,1718167848031,-500.0,0.00018082,2]
[329193579,1718167848042,-500.0,0.00018082,2]
[329193580,1718167848052,-1611.98,0.00018082,2]
[329193581,1718167848063,-500.0,0.00018082,2]
[329193582,1718167848073,-500.0,0.00018082,2]
[329193583,1718167848083,-1338.59,0.00018082,2]
[329193584,1718167848095,-752.86,0.00018082,2]
[329193585,1718167848112,-840.74,0.00018082,2]
[329193586,1718167848133,-534.42,0.00018082,2]
[329193587,1718167848144,-590.69,0.00018082,2]
[329193588,1718167848155,-675.18,0.00018082,2]
[329193589,1718167848169,-500.0,0.00018082,2]
[329193590,1718167848187,-2480.55,0.00018082,2]
[329193591,1718167848201,-500.0,0.00018356,2]
[329193592,1718167848212,-500.0,0.00018356,2]
[329193593,1718167848223,-2230.04,0.00018356,2]
[329193594,1718167848233,-310.85025111,0.00018356,2]
[329193595,1718167848244,-500.0,0.00018356,2]
[329193596,1718167848256,-500.0,0.00018356,4]
[329193597,1718167848270,-500.0,0.00018356,2]
[329193598,1718167848284,-527.64,0.00018356,2]
[329193599,1718167848299,-500.0,0.00018356,2]
[329193600,1718167848313,-283.52,0.00018356,2]
[329193601,1718167848324,-500.0,0.00018356,2]
[329193602,1718167848335,-581.52,0.00018356,2]
[329193603,1718167848345,-500.0,0.00018356,2]
[329193604,1718167848356,-950.03,0.00018356,2]
[329193605,1718167848367,-500.0,0.00018356,2]
[329193606,1718167848381,-500.0,0.00018356,2]
[329193607,1718167848391,-500.0,0.00018356,2]
[329193608,1718167848401,-500.0,0.00018356,2]
[329193609,1718167848411,-500.0,0.00018356,2]
[329193610,1718167848422,-6879.56,0.00018356,2]
[329193611,1718167848433,-1671.32,0.00018356,2]
[329193612,1718167848443,-635.867111,0.00018356,2]
[329193613,1718167848453,-1149.12,0.00018356,2]
[329193614,1718167848464,-5481.19,0.00018356,2]
[329193615,1718167848476,-500.0,0.00018356,2]
[329193616,1718167848486,-553.11,0.00018356,2]
[329193617,1718167848496,-500.0,0.00018356,2]
[329193618,1718167848507,-4262.91,0.00018356,2]
[329193619,1718167848518,-500.0,0.00018356,2]
[329193620,1718167848529,-375.9453375,0.00018356,2]
[329193621,1718167848539,-1611.98,0.00018356,2]
[329193622,1718167848550,-500.0,0.00018356,2]
[329193623,1718167848562,-500.0,0.00018356,2]
[329193624,1718167848573,-1338.59,0.00018356,2]
[329193625,1718167848587,-752.86,0.00018356,2]
[329193626,1718167848597,-840.74,0.00018356,2]
[329193627,1718167848608,-534.42,0.00018356,2]
[329193628,1718167848618,-590.69,0.00018356,2]
[329193629,1718167848628,-675.18,0.00018356,2]
[329193630,1718167848639,-500.0,0.00018356,2]
[329193631,1718167848649,-2480.55,0.00018356,2]
[329193632,1718167848660,-306.0,0.00018384,2]
[329193633,1718167848670,-610.53370792,0.000185,2]
[329193634,1718167848680,-1000.0,0.000185,2]
[329193636,1718167848692,-500.0,0.0001863,2]
[329193637,1718167848702,-500.0,0.0001863,2]
[329193638,1718167848712,-2230.04,0.0001863,2]
[329193639,1718167848723,-500.0,0.0001863,2]
[329193640,1718167848733,-500.0,0.0001863,4]
[329193641,1718167848746,-500.0,0.0001863,2]
[329193642,1718167848757,-527.64,0.0001863,2]
[329193643,1718167848769,-500.0,0.0001863,2]
[329193644,1718167848783,-283.52,0.0001863,2]
[329193645,1718167848794,-500.0,0.0001863,2]
[329193646,1718167848805,-581.52,0.0001863,2]
[329193647,1718167848817,-500.0,0.0001863,2]
[329193648,1718167848827,-950.03,0.0001863,2]
[329193649,1718167848837,-500.0,0.0001863,2]
[329193650,1718167848847,-500.0,0.0001863,2]
[329193651,1718167848859,-500.0,0.0001863,2]
[329193652,1718167848871,-500.0,0.0001863,2]
[329193653,1718167848881,-500.0,0.0001863,2]
[329193654,1718167848893,-6879.56,0.0001863,2]
[329193655,1718167848906,-1671.32,0.0001863,2]
[329193656,1718167848923,-1149.12,0.0001863,2]
[329193657,1718167848936,-5481.19,0.0001863,2]
[329193658,1718167848946,-500.0,0.0001863,2]
[329193659,1718167848957,-553.11,0.0001863,2]
[329193660,1718167848973,-500.0,0.0001863,2]
[329193661,1718167848989,-4262.91,0.0001863,2]
[329193662,1718167849003,-500.0,0.0001863,2]
[329193663,1718167849013,-1611.98,0.0001863,2]
[329193664,1718167849023,-500.0,0.0001863,2]
[329193665,1718167849039,-500.0,0.0001863,2]
[329193666,1718167849054,-1338.59,0.0001863,2]
[329193667,1718167849071,-752.86,0.0001863,2]
[329193668,1718167849090,-840.74,0.0001863,2]
[329193669,1718167849120,-534.42,0.0001863,2]
[329193670,1718167849149,-590.69,0.0001863,2]
[329193671,1718167849160,-675.18,0.0001863,2]
[329193672,1718167849170,-500.0,0.0001863,2]
[329193673,1718167849180,-2480.55,0.0001863,2]
[329193674,1718167849191,-250.0,0.0001863,2]
[329193675,1718167849204,-205.3436861,0.00018658,2]
[329193676,1718167849215,-221.9335218,0.00018795,2]
[329193677,1718167849226,-292.5693121,0.00018795,2]
[329193678,1718167849236,-292.5693121,0.00018795,2]
[329193679,1718167849247,-292.5693121,0.00018795,2]
[329193680,1718167849257,-292.5693121,0.00018795,2]
[329193681,1718167849270,-431.7544452,0.00018795,2]
[329193682,1718167849280,-153.0,0.00018795,2]
[329193683,1718167849290,-158.9529185,0.00018795,2]
[329193684,1718167849299,-583.150751,0.00018795,2]
[329193685,1718167849310,-292.5693121,0.00018795,2]
[329193686,1718167849320,-289.1879982,0.00018795,2]
[329193687,1718167849331,-5281.92082876,0.00018871,2]
[329193688,1718167849341,-499.0,0.00018892,2]
[329193689,1718167849351,-151.22,0.00018892,2]
[329193691,1718167849361,-7710.66083061,0.000189,2]
[329193692,1718167849372,-151.0,0.000189,2]
[329193693,1718167849382,-500.0,0.00018904,2]
[329193694,1718167849392,-500.0,0.00018904,2]
[329193695,1718167849404,-2230.04,0.00018904,2]
[329193696,1718167849415,-507.93413676,0.00018904,2]
[329193697,1718167849428,-500.0,0.00018904,4]
[329193698,1718167849439,-264.71039901,0.00018904,2]
[329193699,1718167849449,-527.64,0.00018904,2]
[329193700,1718167849460,-500.0,0.00018904,2]
[329193701,1718167849474,-283.52,0.00018904,2]
[329193702,1718167849484,-500.0,0.00018904,2]
[329193703,1718167849495,-581.52,0.00018904,2]
[329193704,1718167849505,-500.0,0.00018904,2]
[329193705,1718167849516,-950.03,0.00018904,2]
[329193706,1718167849526,-500.0,0.00018904,2]
[329193707,1718167849537,-500.0,0.00018904,2]
[329193708,1718167849548,-199.13831297,0.00018904,2]
[329193709,1718167849559,-500.0,0.00018904,2]
[329193710,1718167849570,-500.0,0.00018904,2]
[329193711,1718167849581,-6879.56,0.00018904,2]
[329193712,1718167849591,-1671.32,0.00018904,2]
[329193713,1718167849602,-1149.12,0.00018904,2]
[329193714,1718167849612,-5481.19,0.00018904,2]
[329193715,1718167849621,-500.0,0.00018904,2]
[329193716,1718167849631,-553.11,0.00018904,2]
[329193717,1718167849642,-500.0,0.00018904,2]
[329193718,1718167849652,-4262.91,0.00018904,2]
[329193719,1718167849662,-500.0,0.00018904,2]
[329193720,1718167849672,-1611.98,0.00018904,2]
[329193721,1718167849683,-500.0,0.00018904,2]
[329193722,1718167849694,-172.52007797,0.00018904,2]
[329193723,1718167849705,-1338.59,0.00018904,2]
[329193724,1718167849716,-752.86,0.00018904,2]
[329193725,1718167849727,-840.74,0.00018904,2]
[329193726,1718167849740,-534.42,0.00018904,2]
[329193727,1718167849752,-590.69,0.00018904,2]
[329193728,1718167849765,-675.18,0.00018904,2]
[329193729,1718167849781,-500.0,0.00018904,2]
[329193730,1718167849792,-2480.55,0.00018904,2]
[329193731,1718167849806,-3000.0,0.00018958,2]
[329193732,1718167849816,-3000.0,0.00018958,2]
[329193733,1718167849827,-3000.0,0.00018958,2]
[329193734,1718167849837,-3000.0,0.00018958,2]
[329193735,1718167849847,-3000.0,0.00018958,2]
[329193736,1718167849860,-394.20283113,0.00019,2]
[329193737,1718167849872,-7270.73643792,0.00019,2]
[329193738,1718167849883,-163.14541634,0.00019,2]
[329193739,1718167849894,-1000.0,0.00019,2]
[329193740,1718167849904,-49505.83357504,0.00019035,2]
[329193741,1718167849917,-49505.83357504,0.00019046,2]
[329193742,1718167849929,-27036.89298663,0.0001905,2]
[329193743,1718167849939,-11447.39155095,0.00019051,2]
[329193744,1718167850102,-12420.13114093,0.00019051,2]
[329193745,1718167850202,-1570.92564338,0.00019051,2]
[329193746,1718167850293,-500.0,0.00016438,2]
[329193747,1718167850305,-500.0,0.00016712,2]
[329193748,1718167850317,-500.0,0.00016986,2]
[329193749,1718167850329,-500.0,0.0001726,2]
[329193750,1718167850339,-310.31,0.00017534,2]
[329193751,1718167850352,-1598.44465137,0.00019051,2]
[329193752,1718167850362,-1974.17038663,0.00019056,2]
[329193753,1718167850868,-154.993,0.00018892,2]
[329193754,1718167850881,-47531.66318841,0.00019056,2]
[329193755,1718167850895,-49505.83357504,0.00019074,2]
[329193756,1718167850906,-6700.54259875,0.00019076,2]
[329193759,1718167993656,3000.0,0.000197,30]
[329193760,1718167994268,3000.0,0.0001971,30]
[329193761,1718167994636,3000.0,0.0001972,30]
[329193762,1718167994968,3000.0,0.0001973,30]
[329193763,1718167995271,3000.0,0.0001974,30]
[329193764,1718167995582,3000.0,0.0001975,30]
[329193765,1718167995929,3000.0,0.0001976,30]
[329193766,1718167996211,3000.0,0.0001977,30]
[329193767,1718167996522,3000.0,0.0001978,30]
[329193768,1718167996850,5531.337258,0.0001979,30]
[329193798,1718168903026,-253.04279,0.00014106,2]
[329193799,1718168903073,-163.73640345,0.00014239,2]
[329193800,1718168903109,-300.0,0.00014337,2]
[329193801,1718168903156,-300.0,0.00014337,2]
[329193802,1718168903185,-59601.7655854,0.00014338,2]
[329193803,1718168903213,-24381.45522115,0.00014339,2]
[329193805,1718168992863,2785.7101691,0.00013588,2]
[329193806,1718169011624,-8762.42964821,0.00014237,2]
[329193807,1718169011649,-2643.67953355,0.00014238,2]
[329193808,1718169011674,-1050.2920262,0.00014239,2]
[329193809,1718169011700,-518.54477885,0.00014339,2]
[329193810,1718169011725,-262.2747097,0.00014368,2]
[329193811,1718169011750,-925.12652367,0.00014541,2]
[329193812,1718169011775,-452.5258331,0.00014596,2]
[329193813,1718169011799,-300.0,0.00014637,2]
[329193814,1718169011824,-300.0,0.00014637,2]
[329193815,1718169011849,-735.21963898,0.00014638,2]
[329193816,1718169011874,-155.3086056,0.00014638,2]
[329193817,1718169011898,-228.35184601,0.00014638,2]
[329193818,1718169011922,-309.89153874,0.00014638,2]
[329193819,1718169011947,-159.08608589,0.00014638,2]
[329193820,1718169011975,-317.21490521,0.00014639,2]
[329193821,1718169012001,-1850.11772483,0.00014639,2]
[329193822,1718169012026,-18727.91767423,0.0001464,2]
[329193823,1718169012054,-42302.01892723,0.00014641,2]
[329193873,1718169035667,490.05694043,9.999e-05,2]
[329193912,1718169039722,-2643.67953355,0.0001464,2]
[329193913,1718169039734,-802.60765198,0.00014641,2]
[329193914,1718169039744,-19123.9123469,0.00014642,2]
[329193916,1718169039755,-490.065615,0.00015569,4]
[329193918,1718169039766,-238.26181432,0.00015571,2]
[329193920,1718169039777,-157.65681588,0.00015571,2]
[329193922,1718169039788,-5037.43735098,0.00015848,2]
[329193924,1718169039800,-5000.0,0.00015848,2]
[329193926,1718169039811,-5000.0,0.00015848,2]
[329193928,1718169039823,-420.0,0.000161,2]
[329193930,1718169039834,-251.48833165,0.00016238,2]
[329193933,1718169039846,-728.52057923,0.00016338,2]
[329193935,1718169039857,-155.26451067,0.00016436,2]
[329193937,1718169039870,-2121.07320042,0.00016436,2]
[329193939,1718169039887,-1977.43359407,0.00016437,2]
[329193941,1718169039898,-500.0,0.00016438,2]
[329193943,1718169039909,-505.42748046,0.00016438,2]
[329193945,1718169039922,-511.39106394,0.00016438,2]
[329193947,1718169039933,-500.0,0.00016438,2]
[329193949,1718169039944,-500.0,0.00016438,4]
[329193951,1718169039955,-500.0,0.00016438,2]
[329193953,1718169039967,-500.0,0.00016438,2]
[329193955,1718169039978,-500.0,0.00016438,2]
[329193957,1718169039989,-505.00040707,0.00016438,2]
[329193959,1718169040000,-500.0,0.00016438,2]
[329193961,1718169040012,-258.09980401,0.00016438,2]
[329193963,1718169040023,-470.83296756,0.00016438,2]
[329193965,1718169040034,-500.0,0.00016438,2]
[329193967,1718169040045,-517.09568311,0.00016438,2]
[329193969,1718169040060,-500.0,0.00016438,2]
[329193971,1718169040071,-511.06814897,0.00016438,2]
[329193973,1718169040082,-500.0,0.00016438,2]
[329193975,1718169040093,-400.27161015,0.00016438,2]
[329193977,1718169040105,-500.0,0.00016438,2]
[329193979,1718169040120,-315.55547614,0.00016438,2]
[329193981,1718169040132,-500.0,0.00016438,2]
[329193983,1718169040143,-286.3,0.00016438,2]
[329193985,1718169040155,-1003.81612686,0.00016438,2]
[329193987,1718169040166,-504.49629429,0.00016438,2]
[329193989,1718169040178,-500.0,0.00016438,2]
[329193991,1718169040189,-500.0,0.00016438,2]
[329193992,1718169040200,-501.74210217,0.00016438,2]
[329193993,1718169040212,-500.0,0.00016438,2]
[329193994,1718169040223,-500.0,0.00016438,2]
[329193995,1718169040235,-500.0,0.00016438,2]
[329193996,1718169040245,-500.0,0.00016438,2]
[329193997,1718169040261,-530.71258531,0.00016438,2]
[329193998,1718169040273,-500.0,0.00016438,2]
[329193999,1718169040285,-500.57995138,0.00016438,2]
[329194001,1718169040296,-500.0,0.00016438,2]
[329194002,1718169040311,-157.14871529,0.00016438,2]
[329194003,1718169040323,-500.0,0.00016438,2]
[329194004,1718169040334,-500.0,0.00016438,2]
[329194005,1718169040346,-502.48313315,0.00016438,2]
[329194007,1718169040357,-500.94295878,0.00016438,2]
[329194008,1718169040369,-501.27021013,0.00016438,2]
[329194009,1718169040380,-501.11288431,0.00016438,2]
[329194010,1718169040390,-500.0,0.00016438,2]
[329194011,1718169040401,-500.0,0.00016438,2]
[329194012,1718169040412,-500.0,0.00016438,2]
[329194013,1718169040423,-526.31069258,0.00016438,2]
[329194014,1718169040434,-500.0,0.00016438,2]
[329194015,1718169040445,-500.0,0.00016438,2]
[329194016,1718169040457,-472.09947383,0.00016438,2]
[329194017,1718169040468,-262.7404496,0.00016438,2]
[329194018,1718169040479,-500.96029434,0.00016438,2]
[329194019,1718169040489,-504.21914469,0.00016438,2]
[329194020,1718169040500,-495.71,0.00016438,2]
[329194021,1718169040511,-500.0,0.00016438,2]
[329194022,1718169040522,-500.0,0.00016438,2]
[329194023,1718169040533,-500.0,0.00016438,2]
[329194024,1718169040545,-500.0,0.00016438,2]
[329194025,1718169040579,-502.681243,0.00016438,2]
[329194026,1718169040590,-500.0,0.00016438,2]
[329194027,1718169040602,-500.0,0.00016438,2]
[329194028,1718169040613,-500.0,0.00016438,2]
[329194029,1718169040624,-572.16711077,0.00016438,2]
[329194030,1718169040636,-500.0,0.00016438,2]
[329194031,1718169040646,-500.0,0.00016438,2]
[329194032,1718169040656,-2648.17,0.00016438,2]
[329194033,1718169040667,-500.0,0.00016438,2]
[329194034,1718169040677,-520.56344805,0.00016438,2]
[329194035,1718169040688,-535.26953597,0.00016438,2]
[329194036,1718169040699,-500.0,0.00016438,2]
[329194037,1718169040709,-500.0,0.00016438,2]
[329194038,1718169040719,-501.31342103,0.00016438,2]
[329194039,1718169040729,-500.0,0.00016438,2]
[329194040,1718169040740,-159.69649005,0.00016438,2]
[329194041,1718169040750,-500.0,0.00016438,2]
[329194042,1718169040760,-500.0,0.00016438,2]
[329194043,1718169040771,-500.0,0.00016438,2]
[329194044,1718169040780,-199.90481313,0.00016438,2]
[329194045,1718169040791,-500.0,0.00016438,2]
[329194046,1718169040801,-500.0,0.00016438,2]
[329194047,1718169040811,-500.0,0.00016438,2]
[329194048,1718169040822,-500.0,0.00016438,2]
[329194049,1718169040832,-501.76372357,0.00016438,2]
[329194050,1718169040843,-500.0,0.00016438,2]
[329194051,1718169040853,-506.34432331,0.00016438,2]
[329194052,1718169040864,-500.0,0.00016438,2]
[329194053,1718169040874,-502.92764555,0.00016438,2]
[329194054,1718169040886,-500.0,0.00016438,2]
[329194055,1718169040896,-500.0,0.00016438,2]
[329194056,1718169040907,-500.0,0.00016438,2]
[329194057,1718169040917,-500.0,0.00016438,2]
[329194058,1718169040928,-500.0,0.00016438,2]
[329194059,1718169040938,-500.0,0.00016438,2]
[329194060,1718169040948,-500.0,0.00016438,2]
[329194061,1718169040959,-500.0,0.00016438,2]
[329194062,1718169040969,-500.0,0.00016438,2]
[329194063,1718169040980,-500.0,0.00016438,2]
[329194064,1718169040990,-500.0,0.00016438,2]
[329194065,1718169041000,-500.0,0.00016438,2]
[329194066,1718169041011,-500.0,0.00016438,2]
[329194067,1718169041021,-500.0,0.00016438,2]
[329194068,1718169041032,-512.16020118,0.00016438,2]
[329194069,1718169041042,-509.65,0.00016438,2]
[329194070,1718169041052,-500.0,0.00016438,2]
[329194071,1718169041062,-500.0,0.00016438,2]
[329194072,1718169041073,-505.04818177,0.00016438,2]
[329194073,1718169041083,-500.0,0.00016438,2]
[329194074,1718169041093,-502.79293394,0.00016438,2]
[329194075,1718169041103,-500.0,0.00016438,2]
[329194076,1718169041113,-500.0,0.00016438,2]
[329194077,1718169041125,-500.0,0.00016438,2]
[329194078,1718169041136,-500.0,0.00016438,2]
[329194079,1718169041147,-500.0,0.00016438,2]
[329194080,1718169041157,-500.0,0.00016438,2]
[329194081,1718169041168,-500.0,0.00016438,2]
[329194082,1718169041182,-500.0,0.00016438,2]
[329194083,1718169041192,-503.78273806,0.00016438,2]
[329194084,1718169041203,-637.75,0.00016438,2]
[329194085,1718169041214,-500.0,0.00016438,2]
[329194086,1718169041224,-506.64528568,0.00016438,2]
[329194087,1718169041234,-525.08013651,0.00016438,2]
[329194088,1718169041244,-500.0,0.00016438,2]
[329194089,1718169041255,-500.0,0.00016438,2]
[329194090,1718169041266,-500.0,0.00016438,2]
[329194091,1718169041276,-500.0,0.00016438,2]
[329194092,1718169041288,-1134.13,0.00016438,2]
[329194093,1718169041299,-500.0,0.00016438,2]
[329194094,1718169041309,-504.42617392,0.00016438,2]
[329194095,1718169041319,-500.0,0.00016438,2]
[329194096,1718169041329,-504.62764149,0.00016438,2]
[329194097,1718169041340,-500.0,0.00016438,2]
[329194098,1718169041350,-500.0,0.00016438,2]
[329194099,1718169041363,-500.0,0.00016438,2]
[329194100,1718169041372,-500.0,0.00016438,2]
[329194101,1718169041383,-500.0,0.00016438,2]
[329194102,1718169041393,-500.0,0.00016438,2]
[329194103,1718169041403,-500.0,0.00016438,2]
[329194104,1718169041414,-500.0,0.00016438,2]
[329194105,1718169041425,-500.0,0.00016438,2]
[329194106,1718169041436,-500.0,0.00016438,2]
[329194107,1718169041446,-500.0,0.00016438,2]
[329194108,1718169041457,-500.0,0.00016438,2]
[329194109,1718169041468,-500.0,0.00016438,2]
[329194110,1718169041479,-563.73777314,0.00016438,2]
[329194111,1718169041489,-529.84151457,0.00016438,2]
[329194112,1718169041500,-314.30164534,0.00016438,2]
[329194113,1718169041510,-500.0,0.00016438,2]
[329194114,1718169041520,-500.0,0.00016438,2]
[329194115,1718169041531,-500.0,0.00016438,2]
[329194116,1718169041541,-500.0,0.00016438,2]
[329194117,1718169041575,-500.0,0.00016438,2]
[329194118,1718169041586,-501.72311125,0.00016438,2]
[329194119,1718169041597,-501.89214267,0.00016438,2]
[329194120,1718169041607,-502.93715686,0.00016438,2]
[329194121,1718169041618,-500.0,0.00016438,2]
[329194122,1718169041628,-500.0,0.00016438,2]
[329194123,1718169041638,-500.0,0.00016438,2]
[329194124,1718169041648,-500.0,0.00016438,2]
[329194125,1718169041659,-575.29371998,0.00016438,2]
[329194126,1718169041669,-500.0,0.00016438,2]
[329194127,1718169041679,-508.44242997,0.00016438,2]
[329194128,1718169041689,-532.1395488,0.00016438,2]
[329194129,1718169041698,-502.97117949,0.00016438,2]
[329194130,1718169041708,-500.0,0.00016438,2]
[329194131,1718169041717,-500.0,0.00016438,2]
[329194132,1718169041727,-500.0,0.00016438,2]
[329194133,1718169041736,-500.0,0.00016438,2]
[329194134,1718169041745,-500.0,0.00016438,2]
[329194135,1718169041755,-500.0,0.00016438,2]
[329194136,1718169041765,-500.0,0.00016438,2]
[329194137,1718169041774,-500.0,0.00016438,2]
[329194138,1718169041784,-500.0,0.00016438,2]
[329194139,1718169041793,-500.0,0.00016438,2]
[329194140,1718169041803,-339.09202335,0.00016438,2]
[329194141,1718169041812,-500.0,0.00016438,2]
[329194142,1718169041822,-500.0,0.00016438,2]
[329194143,1718169041832,-500.0,0.00016438,2]
[329194144,1718169041842,-500.0,0.00016438,2]
[329194145,1718169041852,-500.0,0.00016438,2]
[329194146,1718169041862,-500.0,0.00016438,2]
[329194147,1718169041871,-500.0,0.00016438,2]
[329194148,1718169041881,-500.0,0.00016438,2]
[329194149,1718169041890,-502.56547321,0.00016438,2]
[329194150,1718169041900,-500.0,0.00016438,2]
[329194151,1718169041910,-500.0,0.00016438,2]
[329194152,1718169041920,-500.0,0.00016438,2]
[329194153,1718169041930,-500.0,0.00016438,2]
[329194154,1718169041940,-500.0,0.00016438,2]
[329194155,1718169041954,-513.56929984,0.00016438,2]
[329194156,1718169041965,-500.0,0.00016438,2]
[329194157,1718169041975,-500.0,0.00016438,2]
[329194158,1718169041985,-500.0,0.00016438,2]
[329194159,1718169041994,-503.29665656,0.00016438,2]
[329194160,1718169042005,-500.0,0.00016438,2]
[329194161,1718169042015,-500.0,0.00016438,2]
[329194162,1718169042025,-500.0,0.00016438,2]
[329194163,1718169042036,-500.0,0.00016438,2]
[329194164,1718169042046,-500.0,0.00016438,2]
[329194165,1718169042057,-500.0,0.00016438,2]
[329194166,1718169042069,-715.2,0.00016438,2]
[329194167,1718169042080,-500.0,0.00016438,2]
[329194168,1718169042090,-500.0,0.00016438,2]
[329194169,1718169042100,-500.0,0.00016438,2]
[329194170,1718169042110,-500.0,0.00016438,2]
[329194171,1718169042121,-502.31926236,0.00016438,2]
[329194172,1718169042132,-500.0,0.00016438,2]
[329194174,1718169042142,-504.24434647,0.00016438,2]
[329194175,1718169042152,-500.0,0.00016438,2]
[329194176,1718169042163,-500.0,0.00016438,2]
[329194177,1718169042175,-500.0,0.00016438,2]
[329194178,1718169042186,-500.0,0.00016438,2]
[329194179,1718169042197,-500.0,0.00016438,2]
[329194180,1718169042208,-501.34714242,0.00016438,2]
[329194181,1718169042219,-500.0,0.00016438,2]
[329194182,1718169042229,-500.0,0.00016438,2]
[329194183,1718169042239,-500.0,0.00016438,2]
[329194184,1718169042251,-500.0,0.00016438,2]
[329194185,1718169042261,-500.0,0.00016438,2]
[329194186,1718169042272,-504.36257956,0.00016438,2]
[329194187,1718169042282,-509.88633484,0.00016438,2]
[329194188,1718169042293,-8622.5,0.00016438,2]
[329194189,1718169042304,-502.21225695,0.00016438,2]
[329194190,1718169042315,-508.3279337,0.00016438,2]
[329194191,1718169042326,-500.0,0.00016438,2]
[329194192,1718169042336,-669.69,0.00016438,2]
[329194193,1718169042347,-500.0,0.00016438,2]
[329194194,1718169042358,-500.0,0.00016438,2]
[329194195,1718169042370,-500.0,0.00016438,2]
[329194196,1718169042381,-418.44223584,0.00016438,2]
[329194197,1718169042392,-500.0,0.00016438,2]
[329194198,1718169042404,-500.0,0.00016438,2]
[329194199,1718169042415,-500.0,0.00016438,2]
[329194200,1718169042425,-500.0,0.00016438,2]
[329194201,1718169042436,-500.0,0.00016438,2]
[329194202,1718169042446,-2928.43,0.00016438,2]
[329194203,1718169042458,-520.41,0.00016438,2]
[329194204,1718169042469,-500.0,0.00016438,2]
[329194205,1718169042479,-500.0,0.00016438,2]
[329194206,1718169042491,-502.82407314,0.00016438,2]
[329194207,1718169042501,-500.0,0.00016438,2]
[329194208,1718169042511,-500.88011306,0.00016438,2]
[329194209,1718169042522,-1488.13,0.00016438,2]
[329194210,1718169042532,-500.0,0.00016438,2]